fUST/lending_fUST_20250715
["ID","MTS","AMOUNT","RATE_DAILY","PERIOD"]
[372248657,1752562243866,-460.0,0.00021018,2]
[372248659,1752562243875,-460.0,0.00021018,2]
[372248661,1752562243885,-460.0,0.00021018,2]
[372248664,1752562243895,-460.0,0.00021018,2]
[372248665,1752562243904,-568.66,0.00021018,2]
[372248667,1752562243914,-460.0,0.00021018,2]
[372248669,1752562243923,-618.74,0.00021018,2]
[372248672,1752562243933,-885.58,0.00021018,2]
[372248674,1752562243943,-720.55,0.00021018,2]
[372248675,1752562243953,-1057.22,0.00021018,2]
[372248677,1752562243963,-1390.35,0.00021018,2]
[372248679,1752562243974,-722.11,0.00021018,2]
[372248681,1752562243983,-808.59,0.00021018,2]
[372248683,1752562243993,-888.08,0.00021018,2]
[372248685,1752562244003,-460.0,0.00021018,2]
[372248687,1752562244012,-460.0,0.00021018,2]
[372248689,1752562244022,-1059.82,0.00021018,2]
[372248691,1752562244031,-460.0,0.00021018,2]
[372248693,1752562244040,-875.06,0.00021018,2]
[372248695,1752562244050,-826.33,0.00021018,2]
[372248697,1752562244059,-581.02,0.00021018,2]
[372248699,1752562244068,-460.0,0.00021018,2]
[372248701,1752562244078,-460.0,0.00021018,2]
[372248703,1752562244087,-460.0,0.00021019,2]
[372248705,1752562244096,-460.0,0.00021019,2]
[372248707,1752562244106,-6716.04,0.00021019,2]
[372248709,1752562244115,-1559.66,0.00021019,2]
[372248711,1752562244125,-1136.82,0.00021019,2]
[372248713,1752562244134,-874.61,0.00021019,2]
[372248715,1752562244144,-2386.42,0.00021019,2]
[372248717,1752562244152,-562.3,0.00021019,2]
[372248719,1752562244162,-955.93,0.00021019,2]
[372248721,1752562244171,-3601.14,0.00021019,2]
[372248723,1752562244180,-604.75,0.00021019,2]
[372248725,1752562244190,-1761.32,0.00021019,2]
[372248727,1752562244199,-2352.52,0.00021019,2]
[372248729,1752562244209,-195.76260256,0.00021095,2]
[372248731,1752562244221,-876.73,0.00021095,2]
[372248733,1752562244230,-601.14,0.00021095,2]
[372248735,1752562244240,-460.0,0.00021095,2]
[372248737,1752562244249,-530.91,0.00021095,2]
[372248739,1752562244259,-460.0,0.00021095,2]
[372248741,1752562244268,-859.4,0.00021095,2]
[372248743,1752562244278,-460.0,0.00021095,2]
[372248745,1752562244287,-460.0,0.00021095,2]
[372248747,1752562244297,-460.0,0.00021095,2]
[372248749,1752562244307,-460.0,0.00021095,2]
[372248751,1752562244316,-470.97988062,0.00021095,2]
[372248753,1752562244325,-460.0,0.00021095,2]
[372248755,1752562244335,-700.69,0.00021095,2]
[372248757,1752562244345,-941.73,0.00021095,2]
[372248759,1752562244355,-5746.08,0.00021095,2]
[372248761,1752562244364,-460.0,0.00021095,2]
[372248763,1752562244374,-2477.79,0.00021095,2]
[372248765,1752562244383,-151.0,0.00021095,3]
[372248767,1752562244393,-151.0,0.00021095,3]
[372248769,1752562244402,-151.0,0.00021095,3]
[372248771,1752562244412,-151.0,0.00021095,3]
[372248773,1752562244421,-151.15357884,0.00021095,3]
[372248775,1752562244431,-500.0,0.00021095,3]
[372248777,1752562244440,-151.0,0.00021095,3]
[372248779,1752562244450,-151.0,0.00021095,3]
[372248781,1752562244460,-151.0,0.00021095,3]
[372248783,1752562244472,-151.0,0.00021095,3]
[372248785,1752562244482,-151.0,0.00021095,2]
[372248787,1752562244491,-151.0,0.00021095,3]
[372248789,1752562244501,-151.0,0.00021095,2]
[372248791,1752562244511,-151.0,0.00021095,3]
[372248793,1752562244521,-151.0,0.00021095,2]
[372248795,1752562244530,-151.53698743,0.00021095,3]
[372248797,1752562244539,-159.23022373,0.00021095,3]
[372248799,1752562244549,-1871.0,0.00021095,3]
[372248801,1752562244559,-160.22794572,0.00021095,2]
[372248803,1752562244568,-150000.0,0.00021105,2]
[372248805,1752562244578,-420.0,0.00021107,2]
[372248807,1752562244587,-420.0,0.00021107,2]
[372248809,1752562244597,-501.50161883,0.00021121,2]
[372248811,1752562244607,-500.0,0.00021121,2]
[372248813,1752562244616,-1000.0,0.00021121,2]
[372248815,1752562244626,-1004.85085661,0.00021121,2]
[372248817,1752562244635,-1000.0,0.00021121,2]
[372248819,1752562244645,-514.59780035,0.00021121,2]
[372248821,1752562244655,-1000.0,0.00021121,2]
[372248823,1752562244667,-500.0,0.00021121,2]
[372248825,1752562244677,-219.37292112,0.00021122,3]
[372248827,1752562244686,-151.0,0.00021122,3]
[372248829,1752562244696,-151.0,0.00021122,3]
[372248831,1752562244707,-151.0,0.00021122,3]
[372248833,1752562244717,-500.0,0.00021122,3]
[372248835,1752562244726,-198.99179917,0.00021122,3]
[372248837,1752562244736,-198.55993634,0.00021122,3]
[372248839,1752562244747,-200.30993688,0.00021122,3]
[372248841,1752562244758,-151.0,0.00021122,3]
[372248843,1752562244767,-151.0,0.00021122,2]
[372248845,1752562244776,-151.0,0.00021122,3]
[372248847,1752562244786,-199.69821194,0.00021122,3]
[372248849,1752562244796,-1871.0,0.00021122,3]
[372248851,1752562244806,-260.510826,0.00021128,15]
[372248853,1752562244816,-500.0,0.0002115,3]
[372248855,1752562244825,-286.03340858,0.0002115,3]
[372248857,1752562244835,-223.58363869,0.0002115,2]
[372248859,1752562244844,-151.0,0.0002115,3]
[372248861,1752562244854,-1871.0,0.0002115,3]
[372248863,1752562244863,-497.93,0.00021156,2]
[372248865,1752562244873,-460.0,0.00021156,2]
[372248867,1752562244882,-460.0,0.00021156,2]
[372248869,1752562244891,-636.48,0.00021156,2]
[372248871,1752562244901,-460.0,0.00021156,2]
[372248873,1752562244910,-151.0,0.00021158,2]
[372248875,1752562244920,-151.0,0.00021158,2]
[372248877,1752562244930,-151.0,0.00021158,2]
[372248879,1752562244939,-169.95868,0.00021158,2]
[372248881,1752562244948,-169.95868,0.00021158,2]
[372248883,1752562244959,-166.790333,0.00021158,2]
[372248884,1752562244970,-166.790333,0.00021158,2]
[372248886,1752562244980,-1829.21367084,0.00021163,2]
[372248888,1752562244990,-570.0,0.00021177,3]
[372248890,1752562244999,-151.0,0.00021177,3]
[372248892,1752562245009,-1871.0,0.00021177,3]
[372248894,1752562245018,-152.50305716,0.00021204,3]
[372248896,1752562245028,-151.0,0.00021204,3]
[372248898,1752562245037,-151.0,0.00021204,3]
[372248900,1752562245047,-151.0,0.00021204,3]
[372248902,1752562245056,-151.0,0.00021204,3]
[372248904,1752562245065,-151.0,0.00021204,3]
[372248906,1752562245075,-217.25668783,0.00021205,3]
[372248908,1752562245084,-1871.0,0.00021205,3]
[372248910,1752562245094,-151.0,0.00021231,3]
[372248912,1752562245104,-247.18468876,0.00021231,3]
[372248914,1752562245113,-151.0,0.00021231,3]
[372248916,1752562245123,-151.0,0.00021231,3]
[372248919,1752562245133,-151.0,0.00021231,3]
[372248920,1752562245142,-1871.0,0.00021232,3]
[372248923,1752562245152,-1224.57808643,0.00021252,2]
[372248925,1752562245163,-151.0,0.00021259,3]
[372248926,1752562245172,-151.66622157,0.00021259,3]
[372248929,1752562245184,-151.87662148,0.00021259,3]
[372248931,1752562245194,-151.0,0.00021259,3]
[372248933,1752562245204,-1871.0,0.00021259,3]
[372248934,1752562245214,-260.510826,0.00021266,2]
[372248936,1752562245224,-460.0,0.00021268,2]
[372248938,1752562245233,-1000.0,0.00021282,2]
[372248941,1752562245243,-1500.0,0.00021282,2]
[372248942,1752562245252,-151.0,0.00021286,3]
[372248945,1752562245262,-151.0,0.00021286,3]
[372248946,1752562245272,-1871.0,0.00021287,3]
[372248949,1752562245282,-460.0,0.0002129,2]
[372248950,1752562245291,-564.46,0.0002129,2]
[372248952,1752562245301,-632.47,0.0002129,2]
[372248955,1752562245310,-3532.72,0.0002129,2]
[372248957,1752562245320,-460.0,0.0002129,2]
[372248959,1752562245330,-460.0,0.0002129,2]
[372248960,1752562245339,-5786.89,0.0002129,2]
[372248962,1752562245350,-4811.36,0.00021291,2]
[372248965,1752562245361,-460.0,0.00021291,2]
[372248966,1752562245371,-1071.41,0.00021291,2]
[372248968,1752562245380,-2535.92,0.00021291,2]
[372248971,1752562245391,-658.22,0.00021291,2]
[372248972,1752562245403,-3527.94,0.00021291,2]
[372248975,1752562245413,-692.45,0.00021291,2]
[372248976,1752562245423,-460.0,0.00021291,2]
[372248978,1752562245433,-463.25,0.00021291,2]
[372248980,1752562245442,-810.61,0.00021291,2]
[372248982,1752562245452,-2370.09,0.00021291,2]
[372248984,1752562245460,-509.93,0.00021291,2]
[372248986,1752562245471,-819.58,0.00021291,2]
[372248988,1752562245480,-874.96,0.00021291,2]
[372248990,1752562245490,-300.34178847,0.00021291,2]
[372248992,1752562245500,-460.0,0.00021291,2]
[372248994,1752562245510,-460.0,0.00021291,2]
[372248996,1752562245519,-977.84,0.00021291,2]
[372248998,1752562245528,-460.0,0.00021292,2]
[372249001,1752562245538,-460.0,0.00021292,2]
[372249003,1752562245548,-460.0,0.00021292,2]
[372249005,1752562245558,-460.0,0.00021292,2]
[372249007,1752562245567,-568.66,0.00021292,2]
[372249009,1752562245576,-460.0,0.00021292,2]
[372249011,1752562245586,-618.74,0.00021292,2]
[372249013,1752562245595,-885.58,0.00021292,2]
[372249015,1752562245606,-720.55,0.00021292,2]
[372249017,1752562245615,-1057.22,0.00021292,2]
[372249019,1752562245624,-1390.35,0.00021292,2]
[372249021,1752562245634,-722.11,0.00021292,2]
[372249023,1752562245643,-808.59,0.00021292,2]
[372249025,1752562245652,-888.08,0.00021292,2]
[372249027,1752562245663,-460.0,0.00021292,2]
[372249029,1752562245675,-1059.82,0.00021292,2]
[372249031,1752562245684,-460.0,0.00021292,2]
[372249032,1752562245694,-875.06,0.00021292,2]
[372249034,1752562245704,-826.33,0.00021292,2]
[372249036,1752562245714,-581.02,0.00021292,2]
[372249039,1752562245725,-460.0,0.00021292,2]
[372249040,1752562245735,-460.0,0.00021292,2]
[372249042,1752562245746,-460.0,0.00021293,2]
[372249044,1752562245756,-446.76394229,0.00021293,2]
[372249047,1752562245767,-6716.04,0.00021293,2]
[372249048,1752562245776,-1559.66,0.00021293,2]
[372249050,1752562245786,-1136.82,0.00021293,2]
[372249052,1752562245797,-874.61,0.00021293,2]
[372249055,1752562245807,-2386.42,0.00021293,2]
[372249057,1752562245816,-562.3,0.00021293,2]
[372249059,1752562245827,-955.93,0.00021293,2]
[372249060,1752562245837,-3601.14,0.00021293,2]
[372249062,1752562245846,-604.75,0.00021293,2]
[372249064,1752562245856,-1761.32,0.00021293,2]
[372249067,1752562245866,-2352.52,0.00021293,2]
[372249068,1752562245876,-151.0,0.000213,4]
[372249070,1752562245886,-213.07614713,0.00021314,3]
[372249071,1752562245896,-153.59413777,0.00021314,3]
[372249072,1752562245906,-1871.0,0.00021314,3]
[372249073,1752562245916,-636031.39395285,0.00021333,2]
[372249074,1752562245932,-215495.30380328,0.00021333,2]
[372249075,1752562245943,-624.20491612,0.00021333,2]
[372249076,1752562245955,-2571.41412463,0.00021333,2]
[372249096,1752562246138,-460.0,0.00019373,2]
[372249098,1752562246147,-466.72916978,0.00019647,2]
[372249100,1752562246157,-250.78634686,0.00019649,2]
[372249106,1752562246210,-334.91365314,0.00019649,2]
[372249108,1752562246226,-125.08634686,0.00019923,2]
[372249110,1752562246241,-460.61365314,0.00019923,2]
[372249112,1752562246251,-585.7,0.00020197,2]
[372249114,1752562246261,-585.7,0.00020471,2]
[372249116,1752562246270,-1670.89705685,0.00021072,4]
[372249119,1752562246279,-1670.89705685,0.00021245,4]
[372249120,1752562246288,-73027.96475971,0.00021333,2]
[372249123,1752562246300,-55123.45632432,0.00021333,2]
[372249125,1752562246312,-3179.0,0.00021333,2]
[372249143,1752562246476,-460.0,0.00019373,2]
[372249145,1752562246486,-460.0,0.00019373,2]
[372249147,1752562246495,-460.0,0.00019647,2]
[372249149,1752562246505,-460.0,0.00019647,2]
[372249151,1752562246515,-500.0,0.00019648,2]
[372249153,1752562246523,-338.84736078,0.00019648,2]
[372249155,1752562246532,-391.6889641,0.00019921,2]
[372249157,1752562246543,-68.3110359,0.00019921,2]
[372249159,1752562246552,-460.0,0.00019999,2]
[372249161,1752562246562,-460.0,0.00020195,2]
[372249163,1752562246571,-460.0,0.00020273,2]
[372249165,1752562246581,-460.0,0.00020469,2]
[372249167,1752562246590,-460.0,0.00020547,2]
[372249169,1752562246599,-460.0,0.00020743,2]
[372249171,1752562246609,-585.7,0.00020745,2]
[372249173,1752562246618,-460.0,0.00020821,2]
[372249175,1752562246627,-7825.9889641,0.00021019,2]
[372249178,1752562246643,-174.0110359,0.00021019,2]
[372249180,1752562246652,-166741.79624068,0.00021333,2]
[372249182,1752562246663,-1871.0,0.00021342,3]
[372249184,1752562246674,-741.0,0.00021344,2]
[372249186,1752562246684,-500.0,0.00021352,2]
[372249188,1752562246694,-1871.0,0.00021369,3]
[372249190,1752562246704,-876.73,0.00021369,2]
[372249192,1752562246716,-601.14,0.00021369,2]
[372249194,1752562246726,-460.0,0.00021369,2]
[372249196,1752562246737,-530.91,0.00021369,2]
[372249198,1752562246746,-460.0,0.00021369,2]
[372249200,1752562246756,-859.4,0.00021369,2]
[372249202,1752562246765,-460.0,0.00021369,2]
[372249204,1752562246774,-180.7022225,0.00021369,2]
[372249206,1752562246784,-460.0,0.00021369,2]
[372249208,1752562246793,-460.0,0.00021369,2]
[372249210,1752562246803,-700.69,0.00021369,2]
[372249212,1752562246812,-941.73,0.00021369,2]
[372249214,1752562246822,-5746.08,0.00021369,2]
[372249216,1752562246831,-460.0,0.00021369,2]
[372249218,1752562246840,-2477.79,0.00021369,2]
[372249220,1752562246849,-168.0,0.00021371,2]
[372249222,1752562246859,-1871.0,0.00021396,3]
[372249224,1752562246868,-260.0,0.00021408,2]
[372249226,1752562246878,-1670.89705685,0.00021417,5]
[372249228,1752562246888,-973.53671,0.00021421,2]
[372249230,1752562246896,-973.53671,0.00021421,2]
[372249232,1752562246906,-973.53671,0.00021421,2]
[372249234,1752562246916,-973.53671,0.00021421,2]
[372249236,1752562246926,-1871.0,0.00021424,3]
[372249238,1752562246936,-497.93,0.0002143,2]
[372249240,1752562246946,-460.0,0.0002143,2]
[372249242,1752562246956,-460.0,0.0002143,2]
[372249244,1752562246965,-636.48,0.0002143,2]
[372249246,1752562246975,-460.0,0.0002143,2]
[372249248,1752562246984,-1262.92451704,0.00021432,2]
[372249250,1752562246994,-5046.64637009,0.00021432,2]
[372249252,1752562247004,-403.5,0.00021441,2]
[372249254,1752562247013,-154.49618774,0.00021445,2]
[372249256,1752562247023,-1871.0,0.00021451,3]
[372249258,1752562247032,-260.510826,0.00021469,10]
[372249260,1752562247042,-436.381144,0.00021478,8]
[372249262,1752562247051,-1871.0,0.00021479,3]
[372249264,1752562247061,-621.48962157,0.00021499,2]
[372249266,1752562247070,-502690.6484,0.00021499,2]
[372249268,1752562247080,-151.0,0.000215,2]
[372249270,1752562247091,-6756.69,0.000215,2]
[372249272,1752562247111,-3253.21,0.000215,2]
[372249274,1752562247121,-42694.42,0.000215,2]
[372249276,1752562247131,-10125.08309818,0.000215,2]
[372249278,1752562247140,-1871.0,0.00021506,3]
[372249280,1752562247150,-1871.0,0.00021533,3]
[372249282,1752562247160,-151.0,0.00021542,2]
[372249284,1752562247169,-460.0,0.00021542,2]
[372249286,1752562247178,-3000.0,0.0002155,2]
[372249289,1752562247198,-151.0,0.00021555,2]
[372249292,1752562247210,-151.0,0.00021555,2]
[372249294,1752562247221,-151.0,0.00021555,2]
[372249296,1752562247231,-151.0,0.00021555,2]
[372249298,1752562247240,-151.0,0.00021555,2]
[372249300,1752562247250,-151.0,0.00021555,2]
[372249302,1752562247260,-151.0,0.00021555,2]
[372249304,1752562247269,-151.0,0.00021555,2]
[372249306,1752562247279,-151.0,0.00021555,2]
[372249308,1752562247289,-151.0,0.00021555,2]
[372249310,1752562247298,-151.0,0.00021555,2]
[372249312,1752562247308,-151.0,0.00021555,2]
[372249314,1752562247318,-151.0,0.00021555,2]
[372249316,1752562247327,-151.0,0.00021555,2]
[372249318,1752562247337,-161.707652,0.00021555,2]
[372249320,1752562247348,-151.0,0.00021555,2]
[372249322,1752562247359,-151.0,0.00021555,2]
[372249324,1752562247368,-151.0,0.00021555,2]
[372249326,1752562247378,-151.0,0.00021555,2]
[372249328,1752562247387,-151.0,0.00021555,2]
[372249330,1752562247397,-169.95868,0.00021555,2]
[372249332,1752562247406,-169.95868,0.00021555,2]
[372249334,1752562247416,-166.790333,0.00021555,2]
[372249336,1752562247426,-166.790333,0.00021555,2]
[372249338,1752562247435,-1871.0,0.00021561,3]
[372249340,1752562247446,-151.0,0.00021561,2]
[372249342,1752562247457,-151.0,0.00021561,2]
[372249344,1752562247469,-191.062616,0.00021561,2]
[372249346,1752562247479,-191.062616,0.00021561,2]
[372249348,1752562247489,-720.401618,0.00021561,2]
[372249350,1752562247499,-720.401618,0.00021561,2]
[372249352,1752562247509,-151.0,0.00021561,2]
[372249355,1752562247519,-164.316515,0.00021561,2]
[372249357,1752562247528,-164.316515,0.00021561,2]
[372249359,1752562247538,-460.0,0.00021564,2]
[372249361,1752562247547,-564.46,0.00021564,2]
[372249363,1752562247556,-632.47,0.00021564,2]
[372249365,1752562247566,-3532.72,0.00021564,2]
[372249367,1752562247575,-460.0,0.00021564,2]
[372249369,1752562247585,-460.0,0.00021564,2]
[372249370,1752562247594,-5786.89,0.00021564,2]
[372249373,1752562247603,-4811.36,0.00021565,2]
[372249375,1752562247613,-460.0,0.00021565,2]
[372249376,1752562247622,-1071.41,0.00021565,2]
[372249379,1752562247631,-2535.92,0.00021565,2]
[372249380,1752562247641,-658.22,0.00021565,2]
[372249383,1752562247650,-151.0,0.00021565,2]
[372249385,1752562247660,-3527.94,0.00021565,2]
[372249387,1752562247675,-692.45,0.00021565,2]
[372249389,1752562247684,-460.0,0.00021565,2]
[372249390,1752562247694,-463.25,0.00021565,2]
[372249393,1752562247705,-810.61,0.00021565,2]
[372249395,1752562247715,-2370.09,0.00021565,2]
[372249397,1752562247725,-509.93,0.00021565,2]
[372249398,1752562247734,-819.58,0.00021565,2]
[372249400,1752562247745,-874.96,0.00021565,2]
[372249403,1752562247755,-460.0,0.00021565,2]
[372249405,1752562247764,-460.0,0.00021565,2]
[372249407,1752562247774,-977.84,0.00021565,2]
[372249409,1752562247784,-460.0,0.00021566,2]
[372249411,1752562247795,-460.0,0.00021566,2]
[372249413,1752562247804,-460.0,0.00021566,2]
[372249415,1752562247814,-151.0,0.00021566,2]
[372249417,1752562247828,-460.0,0.00021566,2]
[372249419,1752562247838,-151.0,0.00021566,2]
[372249421,1752562247847,-568.66,0.00021566,2]
[372249423,1752562247857,-460.0,0.00021566,2]
[372249425,1752562247867,-151.20117,0.00021566,2]
[372249427,1752562247876,-618.74,0.00021566,2]
[372249429,1752562247886,-720.55,0.00021566,2]
[372249431,1752562247896,-1057.22,0.00021566,2]
[372249433,1752562247906,-1390.35,0.00021566,2]
[372249436,1752562247917,-722.11,0.00021566,2]
[372249438,1752562247926,-808.59,0.00021566,2]
[372249440,1752562247936,-888.08,0.00021566,2]
[372249442,1752562247945,-470.36937149,0.00021566,2]
[372249444,1752562247955,-1385.722063,0.00021566,2]
[372249446,1752562247965,-151.0,0.00021566,2]
[372249448,1752562247974,-1385.722063,0.00021566,2]
[372249450,1752562247984,-1059.82,0.00021566,2]
[372249452,1752562247994,-460.0,0.00021566,2]
[372249454,1752562248003,-151.0,0.00021566,2]
[372249456,1752562248012,-875.06,0.00021566,2]
[372249458,1752562248021,-826.33,0.00021566,2]
[372249460,1752562248031,-581.02,0.00021566,2]
[372249462,1752562248041,-460.0,0.00021566,2]
[372249464,1752562248051,-460.0,0.00021566,2]
[372249466,1752562248061,-460.0,0.00021567,2]
[372249468,1752562248070,-151.0,0.00021567,2]
[372249470,1752562248080,-151.0,0.00021567,2]
[372249472,1752562248090,-151.0,0.00021567,2]
[372249474,1752562248100,-151.0,0.00021567,2]
[372249476,1752562248109,-151.0,0.00021567,2]
[372249478,1752562248119,-210.538899,0.00021567,2]
[372249480,1752562248128,-210.538899,0.00021567,2]
[372249482,1752562248138,-6716.04,0.00021567,2]
[372249484,1752562248147,-1559.66,0.00021567,2]
[372249486,1752562248157,-1136.82,0.00021567,2]
[372249488,1752562248166,-874.61,0.00021567,2]
[372249490,1752562248176,-2386.42,0.00021567,2]
[372249492,1752562248186,-562.3,0.00021567,2]
[372249494,1752562248196,-955.93,0.00021567,2]
[372249496,1752562248205,-3601.14,0.00021567,2]
[372249498,1752562248215,-604.75,0.00021567,2]
[372249500,1752562248225,-1761.32,0.00021567,2]
[372249502,1752562248234,-2352.52,0.00021567,2]
[372249504,1752562248244,-151.0,0.00021567,2]
[372249506,1752562248254,-1074.383098,0.00021567,2]
[372249508,1752562248266,-1871.0,0.00021588,3]
[372249510,1752562248276,-1670.89705685,0.0002159,5]
[372249512,1752562248285,-151.0,0.0002159,2]
[372249514,1752562248296,-151.0,0.0002159,2]
[372249516,1752562248305,-151.0,0.0002159,2]
[372249518,1752562248316,-151.0,0.0002159,2]
[372249521,1752562248326,-157.26078,0.0002159,2]
[372249523,1752562248336,-260.510826,0.0002159,2]
[372249525,1752562248346,-585.0,0.00021591,2]
[372249527,1752562248355,-1871.0,0.00021616,3]
[372249529,1752562248365,-151.0,0.00021642,2]
[372249531,1752562248376,-151.0,0.00021642,2]
[372249533,1752562248385,-1871.0,0.00021643,3]
[372249535,1752562248394,-151.0,0.00021643,2]
[372249537,1752562248404,-876.73,0.00021643,2]
[372249539,1752562248414,-601.14,0.00021643,2]
[372249541,1752562248424,-460.0,0.00021643,2]
[372249543,1752562248434,-530.91,0.00021643,2]
[372249545,1752562248444,-460.0,0.00021643,2]
[372249547,1752562248454,-859.4,0.00021643,2]
[372249549,1752562248466,-460.0,0.00021643,2]
[372249551,1752562248476,-460.0,0.00021643,2]
[372249553,1752562248485,-460.0,0.00021643,2]
[372249555,1752562248495,-700.69,0.00021643,2]
[372249557,1752562248505,-941.73,0.00021643,2]
[372249559,1752562248514,-5746.08,0.00021643,2]
[372249561,1752562248524,-460.0,0.00021643,2]
[372249563,1752562248534,-2477.79,0.00021643,2]
[372249565,1752562248544,-2534.0,0.00021652,2]
[372249567,1752562248554,-160.0,0.00021658,2]
[372249569,1752562248563,-160.0,0.00021658,2]
[372249571,1752562248573,-160.0,0.00021662,2]
[372249573,1752562248583,-230.76969291,0.00021662,2]
[372249575,1752562248593,-214.37129034,0.00021662,2]
[372249577,1752562248602,-838.84061749,0.00021662,2]
[372249579,1752562248612,-215.50840239,0.00021662,2]
[372249581,1752562248622,-525.51022752,0.00021662,2]
[372249583,1752562248633,-1500.0,0.00021668,2]
[372249586,1752562248643,-500.0,0.00021668,2]
[372249588,1752562248652,-1500.0,0.00021668,2]
[372249590,1752562248663,-1871.0,0.0002167,3]
[372249591,1752562248675,-260.510826,0.00021675,15]
[372249594,1752562248684,-3825.0,0.00021677,2]
[372249596,1752562248695,-1871.0,0.00021698,3]
[372249598,1752562248705,-497.93,0.00021704,2]
[372249600,1752562248716,-460.0,0.00021704,2]
[372249616,1752562248849,-571.74654099,0.00021704,2]
[372249619,1752562248877,-636.48,0.00021704,2]
[372249621,1752562248888,-460.0,0.00021704,2]
[372249623,1752562248898,-151.0,0.00021706,2]
[372249625,1752562248907,-151.0,0.00021706,2]
[372249627,1752562248917,-151.0,0.00021706,2]
[372249629,1752562248927,-646.323805,0.00021706,2]
[372249631,1752562248937,-646.323805,0.00021706,2]
[372249633,1752562248946,-780.231773,0.00021706,2]
[372249635,1752562248956,-780.231773,0.00021706,2]
[372249637,1752562248967,-620.946716,0.00021706,2]
[372249639,1752562248976,-620.946716,0.00021706,2]
[372249641,1752562248986,-151.0,0.00021706,2]
[372249643,1752562248995,-151.0,0.00021706,2]
[372249645,1752562249005,-1885.20060853,0.00021725,3]
[372249647,1752562249014,-260.510826,0.00021727,10]
[372249649,1752562249024,-192.59868752,0.00021753,2]
[372249652,1752562249034,-1670.89705685,0.00021762,5]
[372249654,1752562249044,-200.0,0.0002179,3]
[372249656,1752562249053,-864.31156983,0.00021805,2]
[372249658,1752562249063,-460.0,0.00021816,2]
[372249660,1752562249072,-2000.0,0.0002183,2]
[372249661,1752562249082,-460.0,0.00021838,2]
[372249663,1752562249092,-564.46,0.00021838,2]
[372249666,1752562249102,-632.47,0.00021838,2]
[372249668,1752562249111,-3532.72,0.00021838,2]
[372249670,1752562249121,-460.0,0.00021838,2]
[372249673,1752562249142,-460.0,0.00021838,2]
[372249675,1752562249152,-5786.89,0.00021838,2]
[372249677,1752562249163,-4811.36,0.00021839,2]
[372249679,1752562249173,-460.0,0.00021839,2]
[372249681,1752562249184,-1071.41,0.00021839,2]
[372249683,1752562249194,-2535.92,0.00021839,2]
[372249685,1752562249205,-658.22,0.00021839,2]
[372249687,1752562249215,-3527.94,0.00021839,2]
[372249690,1752562249226,-692.45,0.00021839,2]
[372249692,1752562249236,-460.0,0.00021839,2]
[372249694,1752562249247,-463.25,0.00021839,2]
[372249696,1752562249257,-810.61,0.00021839,2]
[372249698,1752562249267,-2370.09,0.00021839,2]
[372249700,1752562249278,-509.93,0.00021839,2]
[372249702,1752562249288,-819.58,0.00021839,2]
[372249704,1752562249298,-874.96,0.00021839,2]
[372249706,1752562249308,-460.0,0.00021839,2]
[372249708,1752562249319,-330.74965228,0.00021839,2]
[372249710,1752562249329,-977.84,0.00021839,2]
[372249712,1752562249340,-460.0,0.0002184,2]